bitfinex-derivatives/quotes_ETHF0:USTF0_20250426
["timestamp","ask_amount","ask_price","bid_price","bid_amount"]
[1745704948268,2.464,1816.6,1816.5,2.71476]
[1745704949171,2.464,1816.6,1816.5,8.02276]
[1745704951279,2.464,1816.6,1816.5,2.71476]
[1745704952091,2.464,1816.6,1816.5,8.02276]
[1745704954281,3.2078,1816.9,1816.7,1.10051]
[1745704954485,1.10048,1816.8,1816.6,3.61206]
[1745704954677,2.80628,1816.8,1816.7,1.6573]
[1745704955178,2.80628,1816.8,1816.7,6.9653]
[1745704955381,1.7058,1816.8,1816.7,6.40854]
[1745704955973,1.7058,1816.8,1816.7,7.99904]
[1745704958183,1.7058,1816.8,1816.7,2.69104]
[1745704959090,1.7058,1816.8,1816.7,7.99904]
[1745704961186,1.10042,1816.9,1816.7,6.8985]
[1745704961385,4.4778,1817.0,1816.8,2.78337]
[1745704963176,3.3774,1817.0,1816.9,1.10042]
[1745704964088,4.47776,1817.0,1816.9,1.10042]
[1745704964888,3.2078,1817.3,1817.0,1.10036]
[1745704965188,2.6643,1817.2,1817.1,2.4344]
[1745704965586,2.6643,1817.2,1817.1,0.7991]
[1745704965885,1.564,1817.2,1817.1,1.8994]
[1745704966583,1.564,1817.2,1817.1,3.5347]
[1745704969189,1.6619,1817.4,1817.1,2.4344]
[1745704969391,1.6619,1817.4,1817.3,1.10018]
[1745704969590,3.3017,1817.4,1817.1,4.0069]
[1745704969789,4.40185,1817.4,1817.2,1.10022]
[1745704969989,1.6398,1817.3,1817.2,1.10022]
[1745704971592,1.6398,1817.3,1817.2,2.71112]
[1745704972287,1.6398,1817.3,1817.2,8.01912]
[1745704972492,1.6398,1817.3,1817.2,5.308]
[1745704972687,2.73998,1817.3,1817.2,5.308]
[1745704973089,2.73998,1817.3,1817.1,4.30809]
[1745704973286,1.6989,1817.2,1817.1,4.30809]
[1745704973486,1.6989,1817.2,1817.1,1.10029]
[1745704975295,1.70396863,1817.2,1817.1,2.81489]
[1745704976393,1.70396863,1817.2,1817.1,2.8149]
[1745704977192,1.70396863,1817.2,1817.0,5.308]
[1745704977397,1.1003,1817.1,1817.0,5.308]
[1745704977613,2.7914,1817.1,1817.0,5.308]
[1745704978095,1.6911,1817.1,1817.0,6.40836]
[1745704979089,2.7914,1817.1,1817.0,5.308]
[1745704979989,5.9992,1817.1,1817.0,5.308]
[1745704980184,8.4109,1817.1,1816.7,3.2078]
[1745704980397,1.10048,1816.8,1816.7,3.2078]
[1745704981299,1.10048,1816.8,1816.7,8.5158]
[1745704982792,1.10072,1816.4,1816.3,7.34073318]
[1745704983191,6.10072,1816.4,1816.3,11.41048318]
[1745704983495,1.10078,1816.3,1816.2,6.07775826]
[1745704983694,5.93478,1816.3,1816.2,6.07775826]
[1745704983894,5.93478,1816.3,1816.1,14.53896602]
[1745704983895,1.10084,1816.2,1816.1,14.53896602]
[1745704984090,7.04284,1816.2,1816.1,14.53896602]
[1745704984295,12.04284,1816.2,1816.1,14.53896602]
[1745704985299,7.04284,1816.2,1816.1,14.53896602]
[1745704985692,1.1009,1816.1,1816.0,7.31362802]
[1745704985892,2.7642,1816.1,1816.0,7.31362802]
[1745704986091,1.10088,1816.2,1816.0,12.62162802]
[1745704986293,1.10088,1816.2,1816.1,1.6771]
[1745704988596,1.10083,1816.3,1816.1,1.6771]
[1745704988792,3.2078,1816.5,1816.1,1.6771]
[1745704988992,1.10081,1816.3,1816.1,1.6771]
[1745704989987,1.10081,1816.3,1816.2,3.2078]
[1745704990392,1.10076,1816.4,1816.2,3.2078]
[1745704990695,1.10076,1816.4,1816.3,2.3969]
[1745704991093,1.10076,1816.4,1816.3,7.7049]
[1745704993095,1.1007,1816.5,1816.3,8.80566]
[1745704993403,1.1007,1816.5,1816.4,1.631]
[1745704993893,1.1007,1816.5,1816.4,2.4122]
[1745704994295,1.1007,1816.5,1816.4,7.7202]
[1745704995996,1.1007,1816.5,1816.4,5.308]
[1745704996498,2.8049,1816.5,1816.4,5.308]
[1745704997593,11.3179,1816.5,1816.4,1.55976826]
[1745704997795,17.2299,1816.5,1816.4,8.26e-06]
[1745704998197,1.10109,1815.8,1815.7,5.1249]
[1745704998396,2.75227,1816.1,1815.6,3.2078]
[1745704998397,1.10115,1815.7,1815.6,3.2078]
[1745704998599,2.79585,1815.7,1815.6,3.2078]
[1745704999303,2.79585,1815.7,1815.6,4.897]
[1745704999901,1.10115,1815.7,1815.6,4.897]
[1745705000107,1.10113,1815.8,1815.6,4.897]
[1745705000403,1.10109,1815.8,1815.7,1.6892]
[1745705002201,1.10107,1815.9,1815.7,6.9972]
[1745705002398,1.10107,1815.9,1815.8,1.6859]
[1745705003201,1.10107,1815.9,1815.8,6.9939]
[1745705007305,1.10102,1815.9,1815.8,6.9939]
[1745705008405,1.10102,1815.9,1815.8,10.2017]
[1745705009711,1.10102,1815.9,1815.8,6.9939]
[1745705029432,2.76632,1815.9,1815.8,6.9939]
[1745705039537,1.6653,1815.9,1815.8,6.9939]
[1745705040141,1.6653,1815.9,1815.8,8.09499]
[1745705040334,1.6653,1815.9,1815.8,11.30279]
[1745705040531,1.6653,1815.9,1815.8,8.09499]
[1745705042636,1.6653,1815.9,1815.8,11.30279]
[1745705044634,3.2078,1816.2,1816.1,1.1009]
[1745705045436,2.77451,1816.5,1816.1,3.2078]
[1745705045741,1.6314,1816.5,1816.4,1.10072]
[1745705046443,14.50709914,1816.6,1816.4,1.10072]
[1745705046737,14.50709914,1816.6,1816.5,2.81156]
[1745705046738,16.19349914,1816.6,1816.5,2.81156]
[1745705047742,16.19349914,1816.6,1816.5,1.7109]
[1745705048341,16.19349914,1816.6,1816.5,2.81156]
[1745705050239,16.19349914,1816.6,1816.5,8.11956]
[1745705050634,5.2054,1816.6,1816.5,8.11956]
[1745705050833,1.6864,1816.6,1816.5,8.11956]
[1745705052745,2.787,1816.6,1816.5,5.308]
[1745705053746,1.6864,1816.6,1816.5,6.40866]
[1745705056545,1.69043906,1816.6,1816.5,6.40866]
[1745705056948,2.79103906,1816.6,1816.5,6.40866]
[1745705057644,1.69043906,1816.6,1816.5,6.40866]
[1745705058550,2.79103906,1816.6,1816.5,5.308]
[1745705059448,1.69043906,1816.6,1816.5,6.40866]
[1745705062045,2.79103906,1816.6,1816.5,6.40866]
[1745705062242,1.69043906,1816.6,1816.5,6.40866]
[1745705064256,1e-08,1816.6,1816.5,10.41046]
[1745705064443,1.10060001,1816.6,1816.5,5.308]
[1745705064649,9.30840001,1816.6,1816.5,5.308]
[1745705064954,7.01260001,1816.6,1816.5,4.17185096]
[1745705065254,1.59900001,1816.6,1816.5,4.17185096]
[1745705065555,1.59900001,1816.6,1816.5,5.27251096]
[1745705065856,2.69960001,1816.6,1816.5,4.17185096]
[1745705066447,1.59900001,1816.6,1816.5,4.17185096]
[1745705066956,2.69960001,1816.6,1816.5,4.17185096]
[1745705067455,2.69960001,1816.6,1816.5,5.27251096]
[1745705067655,1.59900001,1816.6,1816.5,5.27251096]
[1745705067858,1e-08,1816.6,1816.5,6.13051096]
[1745705068159,1e-08,1816.6,1816.5,10.15791096]
[1745705068458,1.10060001,1816.6,1816.5,4.17185096]
[1745705069257,1.10072,1816.4,1816.3,9.3336]
[1745705069462,4.41279,1816.5,1816.3,10.43438]
[1745705069756,1.6719,1816.4,1816.3,10.43438]
[1745705070153,4.61864001,1816.6,1816.4,1.10072]
[1745705070356,1.6719,1816.5,1816.4,2.74212]
[1745705070660,3.51800001,1816.6,1816.5,1.10066]
[1745705070854,1e-08,1816.6,1816.5,6.80656]
[1745705071053,1e-08,1816.6,1816.5,12.11456]
[1745705071253,1.10060001,1816.6,1816.5,11.0139]
[1745705071455,2.66420001,1816.6,1816.5,5.308]
[1745705073448,1e-08,1816.6,1816.5,6.40866]
[1745705073653,1e-08,1816.6,1816.5,8.90676]
[1745705077056,1.10060001,1816.6,1816.5,5.308]
[1745705077363,1e-08,1816.6,1816.5,6.40866]
[1745705078162,1e-08,1816.6,1816.5,8.08826]
[1745705078950,1e-08,1816.6,1816.5,13.08826]
[1745705081452,1e-08,1816.6,1816.5,8.08826]
[1745705083554,1e-08,1816.6,1816.5,6.9876]
[1745705083758,1e-08,1816.6,1816.5,8.08826]
[1745705083759,1.68140001,1816.6,1816.5,8.08826]
[1745705084462,1.68140001,1816.6,1816.5,11.29606]
[1745705084662,1e-08,1816.6,1816.5,11.29606]
[1745705087466,1e-08,1816.6,1816.5,8.08826]
[1745705087676,1e-08,1816.6,1816.5,11.29606]
[1745705091175,1.71120001,1816.6,1816.5,9.61646]
[1745705091371,2.57490001,1816.6,1816.5,9.61646]
[1745705092974,1.71120001,1816.6,1816.5,9.61646]
[1745705093179,1.71120001,1816.6,1816.5,11.27546]
[1745705094284,1e-08,1816.6,1816.5,11.27546]
[1745705100185,1e-08,1816.6,1816.5,8.5158]
[1745705100391,11.00010001,1816.6,1816.5,5.308]
[1745705100680,9.89950001,1816.6,1816.5,5.308]
[1745705100886,1.69170001,1816.6,1816.5,6.40866]
[1745705101286,3.32780001,1816.6,1816.5,6.40866]
[1745705101482,1.63610001,1816.6,1816.5,6.40866]
[1745705101787,1e-08,1816.6,1816.5,11.20806]
[1745705103987,1e-08,1816.6,1816.5,9.61646]
[1745705104284,1e-08,1816.6,1816.5,6.40866]
[1745705104480,3.36270001,1816.6,1816.5,6.40866]
[1745705104683,1.65130001,1816.6,1816.5,6.40866]
[1745705104883,1.65130001,1816.6,1816.5,8.02106]
[1745705105185,1e-08,1816.6,1816.5,8.02106]
[1745705112798,1e-08,1816.6,1816.5,13.02106]
[1745705114594,1e-08,1816.6,1816.5,8.02106]
[1745705114795,1e-08,1816.6,1816.5,11.58506]
[1745705118199,1e-08,1816.6,1816.5,16.58506]
[1745705119898,1e-08,1816.6,1816.5,27.62464469]
[1745705120192,1e-08,1816.6,1816.5,36.66888723]
[1745705120800,1.5848,1817.1,1817.0,1.10036]
[1745705121198,1.5848,1817.1,1817.0,6.40836]
[1745705121392,1.5848,1817.1,1817.0,7.99356]
[1745705122499,4.66398,1817.7,1817.1,2.75064]
[1745705122691,1.7124,1817.4,1817.3,4.30798]
[1745705122892,1.7124,1817.4,1817.0,5.308]
[1745705123097,1.1003,1817.1,1817.0,5.308]
[1745705123394,1.1003,1817.1,1816.5,10.51716997]
[1745705123395,6.7718,1817.1,1816.5,10.51716997]
[1745705123599,1.10056,1816.7,1816.5,10.51716997]
[1745705123792,3.3278,1816.6,1816.5,11.61780997]
[1745705124100,4.4284,1816.6,1816.5,7.30936997]
[1745705124304,9.4284,1816.6,1816.5,7.30936997]
[1745705124504,8.3278,1816.6,1816.5,8.41002997]
[1745705124695,3.3278,1816.6,1816.5,8.41002997]
[1745705125203,3.3278,1816.6,1816.5,13.71802997]
[1745705125899,3.3278,1816.6,1816.5,6.40866]
[1745705130706,9.4284,1816.6,1816.5,5.308]
[1745705132407,4.4284,1816.6,1816.5,5.308]
[1745705138216,12.6362,1816.6,1816.5,5.308]
[1745705139213,1.10075,1816.4,1816.2,1.10084]
[1745705139415,1.6026,1816.3,1816.2,1.10084]
[1745705139716,4.27048,1816.3,1816.2,1.10084]
[1745705140212,2.3481,1816.3,1816.2,6.40884]
[1745705140411,11.1126,1816.5,1816.4,1.10072]
[1745705140615,1.10075,1816.4,1816.2,7.7888]
[1745705140808,1.10075,1816.4,1816.3,1.10078]
[1745705141203,1.10078,1816.3,1816.2,5.308]
[1745705141616,11.1126,1816.5,1816.2,6.40884]
[1745705141816,2.70196,1816.4,1816.2,6.40884]
[1745705142017,1.6012,1816.3,1816.2,6.40884]
[1745705142217,2.70198,1816.3,1816.2,6.40884]
[1745705142410,1.6012,1816.3,1816.2,6.40884]
[1745705142811,8.2942,1816.5,1816.4,1.10072]
[1745705143014,7.5132,1816.5,1816.4,1.10072]
[1745705144007,7.5132,1816.5,1816.4,2.76382]
[1745705144206,7.5132,1816.5,1816.4,8.07182]
[1745705146811,1.6012,1816.5,1816.4,8.07182]
[1745705148716,1.10058,1816.7,1816.5,1.10063]
[1745705148916,1.7114,1816.6,1816.5,3.52563]
[1745705149113,1.7114,1816.6,1816.5,8.83363]
[1745705149815,2.812,1816.6,1816.5,5.308]
[1745705151324,2.812,1816.6,1816.5,6.40866]
[1745705152523,2.812,1816.6,1816.5,5.308]
[1745705153725,6.0198,1816.6,1816.5,5.308]
[1745705158527,1.10035,1817.1,1816.8,1.10043]
[1745705158723,1.10034,1817.1,1816.9,5.91671]
[1745705159023,2.77716,1817.0,1816.9,4.8163]
[1745705159221,2.77716,1817.0,1816.9,6.4943]
[1745705160231,2.77716,1817.0,1816.9,11.8023]
[1745705160532,1.6768,1817.0,1816.9,11.8023]
[1745705160828,2.77716,1817.0,1816.9,11.8023]
[1745705162030,1.6768,1817.0,1816.9,11.8023]
[1745705162232,2.77716,1817.0,1816.9,11.8023]
[1745705162529,1.6768,1817.0,1816.9,11.8023]
[1745705162832,5.912,1817.2,1816.9,12.90272]
[1745705163131,1.10031,1817.1,1817.0,1.6455]
[1745705163429,2.68421,1817.1,1817.0,1.6455]
[1745705164423,1.10036,1817.0,1816.9,3.2078]
[1745705164618,4.31526,1817.0,1816.9,3.2078]
[1745705165026,7.91626,1817.0,1816.9,3.2078]
[1745705167022,6.28526,1817.0,1816.9,3.2078]
[1745705167230,6.28526,1817.0,1816.9,5.7177]
[1745705169837,5.1849,1817.0,1816.9,5.7177]
[1745705170038,3.601,1817.0,1816.9,6.81812]
[1745705170234,7.6309,1817.3,1817.1,1.10027]
[1745705170435,7.6309,1817.3,1817.2,0.8066]
[1745705170436,8.73113,1817.3,1817.2,0.8066]
[1745705170735,1.7189,1817.3,1816.9,10.44368]
[1745705170937,1.10036,1817.0,1816.9,9.3433]
[1745705171141,1.10036,1817.0,1816.9,10.9543]
[1745705171331,1.10036,1817.0,1816.9,9.3433]
[1745705171731,1.10035,1817.1,1816.9,12.05472]
[1745705171932,1.10035,1817.1,1817.0,1.611]
[1745705172138,1.10036,1817.0,1816.9,9.3433]
[1745705172338,1.10036,1817.0,1816.9,10.9543]
[1745705172538,1.10036,1817.0,1816.9,12.05472]
[1745705173753,1.10036,1817.0,1816.9,10.9543]
[1745705173953,1.10036,1817.0,1816.9,12.05472]
[1745705176155,1.10036,1817.0,1816.9,10.9543]
[1745705177062,1.7189,1817.2,1816.9,12.05472]
[1745705177251,1.1003,1817.1,1817.0,1.6745]
[1745705178354,1.1003,1817.1,1817.0,6.9825]
[1745705178857,2.81915,1817.2,1817.1,1.1003]
[1745705179057,1.10025,1817.2,1817.1,5.6697]
[1745705179760,2.80255,1817.2,1817.1,5.6697]
[1745705180260,2.80255,1817.2,1817.1,3.9952]
[1745705180450,2.80255,1817.2,1817.1,3.2078]
[1745705180855,1.10025,1817.2,1817.1,3.2078]
[1745705181056,6.39882,1817.3,1817.1,4.8589]
[1745705181254,6.39882,1817.3,1817.2,2.4356]
[1745705181456,6.39882,1817.3,1817.2,3.2315]
[1745705182851,3.601,1817.3,1817.2,4.33174]
[1745705183051,11.2106,1817.6,1817.3,1.10016]
[1745705183251,1.10009,1817.5,1817.4,4.8589]
[1745705184054,2.70329,1817.5,1817.4,4.8589]
[1745705187257,2.70329,1817.5,1817.4,5.95902]
[1745705187458,2.70329,1817.5,1817.4,4.8589]
[1745705189863,2.70329,1817.5,1817.4,3.2078]
[1745705190165,1.10018,1817.3,1817.2,5.88844]
[1745705191555,2.73386,1817.4,1817.2,5.88844]
[1745705191752,1.10018,1817.3,1817.2,5.88844]
[1745705192157,1.10018,1817.3,1817.2,4.7882]
[1745705192557,1.10018,1817.3,1817.2,7.51394]
[1745705193359,2.73386,1817.4,1817.2,7.51394]
[1745705193557,1.6337,1817.4,1817.2,7.51394]
[1745705193757,2.73382,1817.4,1817.3,1.6255]
[1745705194657,1.10012,1817.4,1817.3,1.6255]
[1745705196664,1.10012,1817.4,1817.3,2.72568]
[1745705197058,1.10012,1817.4,1817.3,1.6255]
[1745705197564,2.79689,1817.5,1817.3,2.72563]
[1745705197764,2.79689,1817.5,1817.4,1.10012]
[1745705198062,1.10009,1817.5,1817.4,5.87972]
[1745705198260,1.10009,1817.5,1817.4,4.7796]
[1745705198561,2.68909,1817.5,1817.4,4.7796]
[1745705203061,2.68909,1817.5,1817.4,10.0876]
[1745705204262,2.68909,1817.5,1817.4,4.7796]
[1745705205162,2.68909,1817.5,1817.4,10.0876]
[1745705205967,4.70099,1817.6,1817.5,1.10006]
[1745705206169,4.70099,1817.6,1817.5,4.39096]
[1745705206465,4.70099,1817.6,1817.5,3.2909]
[1745705206857,4.70099,1817.6,1817.5,4.39096]
[1745705207276,4.70099,1817.6,1817.5,3.2909]
[1745705208062,4.70099,1817.6,1817.5,4.39096]
[1745705208261,3.601,1817.6,1817.5,4.39096]
[1745705208762,1.6665,1817.7,1817.5,3.2909]
[1745705208972,2.76643,1817.7,1817.6,2.71999]
[1745705209372,2.76643,1817.7,1817.6,1.62]
[1745705213167,1.6665,1817.7,1817.6,2.71999]
[1745705213473,2.76643,1817.7,1817.6,2.71999]
[1745705213673,2.76643,1817.7,1817.6,1.62]
[1745705218169,1.6665,1817.7,1817.6,2.71999]
[1745705218374,2.76643,1817.7,1817.6,2.71999]
[1745705218677,1.09993,1817.7,1817.6,2.71999]
[1745705218983,4.68091,1817.8,1817.6,2.71999]
[1745705219275,4.68091,1817.8,1817.7,1.6108]
[1745705219776,6.29071,1817.8,1817.7,1.6108]
[1745705222680,1.09993,1817.7,1817.6,3.2078]
[1745705222878,2.82663,1817.7,1817.6,4.8841]
[1745705223076,1.10006,1817.5,1817.4,3.2078]
[1745705223373,4.47657,1817.7,1817.2,1.10022]
[1745705223374,1.10012,1817.4,1817.3,3.3091]
[1745705223569,1.10009,1817.5,1817.3,4.40925]
[1745705223770,2.82679,1817.5,1817.4,1.6763]
[1745705224075,1.09997,1817.7,1817.4,6.9843]
[1745705224382,1.09999,1817.6,1817.4,10.1921]
[1745705224573,1.09999,1817.6,1817.5,1.6763]
[1745705225178,1.09999,1817.6,1817.5,6.9843]
[1745705226073,2.69029,1817.6,1817.5,1.6763]
[1745705227584,1.5903,1817.6,1817.5,2.77636]
[1745705227881,2.69029,1817.6,1817.5,1.6763]
[1745705230089,1.10006,1817.5,1817.4,3.2078]
[1745705230385,2.79796,1817.5,1817.4,3.2078]
[1745705230580,3.59846,1817.5,1817.4,3.2078]
[1745705231284,4.67999,1817.7,1817.5,1.10004]
[1745705231583,6.37789,1817.7,1817.6,0.8028]
[1745705231783,6.37789,1817.7,1817.6,3.2267]
[1745705233381,6.37789,1817.7,1817.6,4.32669]
[1745705233382,5.2779,1817.7,1817.6,4.32669]
[1745705233582,6.37783,1817.7,1817.6,6.4345]
[1745705234591,6.37783,1817.7,1817.6,1.5841]
[1745705235586,6.37783,1817.7,1817.5,2.66326]
[1745705235782,2.65949,1817.6,1817.5,1.5632]
[1745705235985,2.65949,1817.6,1817.4,4.30788]
[1745705236185,1.5595,1817.5,1817.4,9.61588]
[1745705238184,4.67996,1817.7,1817.5,1.10002]
[1745705238387,5.912,1817.9,1817.7,1.09991]
[1745705238388,10.57485,1817.9,1817.7,1.09991]
[1745705238591,12.17985,1817.9,1817.7,1.09991]
[1745705238790,12.17985,1817.9,1817.8,0.779]
[1745705240184,12.81944899,1818.3,1818.0,0.02]
[1745705240391,12.81944899,1818.3,1818.2,4.30743]
[1745705240683,13.91901899,1818.3,1818.2,3.2078]
[1745705240884,12.81944899,1818.3,1818.2,3.2078]
[1745705241086,12.81944899,1818.3,1818.2,9.61543]
[1745705242090,13.91901899,1818.3,1818.2,3.2078]
[1745705242292,12.81944899,1818.3,1818.2,3.2078]
[1745705242493,13.91901899,1818.3,1818.2,3.2078]
[1745705243189,1.09957,1818.3,1818.2,3.2078]
[1745705243390,2.77732,1818.4,1818.2,3.2078]
[1745705243896,2.77732,1818.4,1818.2,6.03472]
[1745705244387,1.6778,1818.4,1818.2,6.03472]
[1745705244595,1.6778,1818.4,1818.3,1.09957]
[1745705244787,1.6778,1818.4,1818.3,1.7211]
[1745705245190,5.308,1818.4,1818.3,2.82067]
[1745705246286,0.8055,1818.5,1818.3,2.82067]
[1745705246490,2.4325,1818.5,1818.4,1.7211]
[1745705246791,2.4325,1818.5,1818.4,2.82061]
[1745705246987,3.53195,1818.5,1818.4,1.7211]
[1745705247189,3.562,1818.6,1818.4,2.82061]
[1745705247488,3.562,1818.6,1818.4,1.7211]
[1745705247687,1.6469,1818.5,1818.4,2.82061]
[1745705247894,3.562,1818.6,1818.4,2.82061]
[1745705248097,1.09948,1818.5,1818.2,4.0336]
[1745705248394,1.6469,1818.5,1818.3,2.82193]
[1745705248597,4.66145,1818.6,1818.4,2.82191]
[1745705248896,3.562,1818.6,1818.5,2.82185]
[1745705249394,1.09931,1818.8,1818.6,1.09939]
[1745705249592,3.56001,1818.8,1818.7,1.7224]
[1745705250998,1.09933,1818.7,1818.5,3.2078]
[1745705251196,1.6798,1818.7,1818.5,1.09943]
[1745705251403,2.77913,1818.7,1818.5,4.30723]
[1745705251595,2.77913,1818.7,1818.6,1.6054]
[1745705252101,1.6798,1818.7,1818.6,2.70479]
[1745705252494,0.8138,1818.8,1818.7,1.09933]
[1745705252799,1.09927,1818.8,1818.7,1.6054]
[1745705253200,8.08707,1818.8,1818.7,1.6054]
[1745705254200,1.6798,1818.8,1818.7,2.70473]
[1745705254901,1.6798,1818.8,1818.7,1.6054]
[1745705255103,6.9878,1818.8,1818.7,1.6054]
[1745705255400,8.08707,1818.8,1818.7,1.6054]
[1745705256097,6.9878,1818.8,1818.7,2.70473]
[1745705256400,8.08707,1818.8,1818.7,1.6054]
[1745705258003,1.09939,1818.6,1818.5,3.2078]
[1745705258404,2.5831,1818.7,1818.3,4.859]
[1745705258405,1.0995,1818.5,1818.3,4.859]
[1745705258702,2.5831,1818.7,1818.5,1.09945]
[1745705258703,1.7265,1818.6,1818.5,1.09945]
[1745705258999,1.95597,1818.7,1818.4,1.7062]
[1745705259000,1.6561,1818.7,1818.4,1.7062]
[1745705259205,1.6561,1818.7,1818.6,1.09939]
[1745705259405,0.7995,1818.7,1818.6,1.09939]
[1745705259604,2.82578,1818.8,1818.6,3.52889]
[1745705259803,1.7265,1818.8,1818.7,1.09933]
[1745705259998,1.7265,1818.8,1818.7,2.74553]
[1745705260400,1.7265,1818.8,1818.7,1.6462]
[1745705260700,1.7265,1818.8,1818.7,2.74553]
[1745705261004,2.82577,1818.8,1818.7,1.6462]
[1745705261204,8.13377,1818.8,1818.7,1.6462]
[1745705261403,8.92657,1818.8,1818.7,1.6462]
[1745705261606,8.92657,1818.8,1818.6,1.88269]
[1745705261802,1.6759,1818.7,1818.6,3.52889]
[1745705262103,2.17538109,1818.8,1818.7,1.09933]
[1745705262308,0.26838891,1819.6,1818.7,10.42843]
[1745705262507,0.26838891,1819.6,1819.2,3.2078]
[1745705262808,3.71488891,1819.6,1819.5,1.09885]
[1745705263104,5.57638891,1819.6,1819.5,1.09885]
[1745705263807,19.35623678,1819.8,1819.5,8.719]
[1745705263808,11.68839033,1819.8,1819.5,8.719]
[1745705263996,9.84798161,1820.0,1819.9,1.0986]
[1745705264307,29.84798161,1820.0,1819.6,3.2078]
[1745705264613,1.7272,1819.9,1819.7,1.09872]
[1745705264802,5.5442,1819.9,1819.7,1.09873]
[1745705264999,13.66498161,1820.0,1819.8,3.2078]
[1745705265303,13.66498161,1820.0,1819.8,8.5158]
[1745705265304,9.84798161,1820.0,1819.8,8.5158]
[1745705265499,9.84798161,1820.0,1819.9,1.0986]
[1745705265706,9.84798161,1820.0,1819.8,9.61443]
[1745705265895,11.51478161,1820.0,1819.9,1.0986]
[1745705266098,9.84798161,1820.0,1819.9,1.0986]
[1745705266711,5.4828,1820.3,1820.1,1.09846]
[1745705266902,5.4828,1820.3,1820.1,4.30626]
[1745705267096,1.6668,1820.3,1820.1,4.30626]
[1745705267307,5.4828,1820.3,1820.1,3.2078]
[1745705267709,5.4828,1820.3,1820.1,4.30626]
[1745705268307,5.4828,1820.3,1820.2,1.09842]
[1745705268513,1.6668,1820.3,1820.1,3.2078]
[1745705268711,21.6668,1820.3,1819.9,4.30639]
[1745705268910,1.09851,1820.1,1819.9,3.2078]
[1745705269208,1.6785,1820.0,1819.9,3.2078]
[1745705269406,1.6785,1820.0,1819.9,4.3064]
[1745705269801,9.727,1820.4,1819.9,3.2078]
[1745705270105,1.6785,1820.3,1820.1,3.2078]
[1745705270411,1.6785,1820.3,1820.1,4.30625]
[1745705270811,1.09842,1820.2,1820.1,3.2078]
[1745705271106,21.6785,1820.3,1820.1,3.2078]
[1745705271413,21.6785,1820.3,1820.1,4.30626]
[1745705271613,22.77687,1820.3,1820.1,3.2078]
[1745705272210,24.8863,1820.3,1819.9,3.2078]
[1745705272403,1.09852,1820.1,1819.9,3.2078]
[1745705272604,1.7231,1820.0,1819.9,3.2078]
[1745705272799,2.82164,1820.0,1819.9,3.2078]
[1745705273004,23.62894,1820.0,1819.9,3.2078]
[1745705273205,23.62894,1820.0,1819.6,3.2078]
[1745705273206,1.09871,1819.8,1819.6,3.2078]
[1745705273503,1.7231,1819.7,1819.6,4.30658]
[1745705277423,3.815,1819.9,1819.6,3.2078]
[1745705277611,5.5211,1819.9,1819.8,4.30647]
[1745705278016,25.5211,1819.9,1819.8,4.30647]
[1745705278416,1.7061,1819.9,1819.8,4.30647]
[1745705279118,1.7061,1819.9,1819.8,9.61447]
[1745705279806,1.7061,1819.9,1819.8,8.5158]
[1745705280017,21.7061,1819.9,1819.8,5.308]
[1745705280215,22.80471,1819.9,1819.7,1.09868]
[1745705280416,22.80471,1819.9,1819.8,3.2078]
[1745705280615,25.5211,1819.9,1819.8,3.2078]
[1745705280815,25.5211,1819.9,1819.8,4.30647]
[1745705281017,26.3684,1819.9,1819.8,4.30647]
[1745705281212,27.467,1819.9,1819.8,3.2078]
[1745705281427,26.3684,1819.9,1819.8,3.2078]
[1745705281717,27.467,1819.9,1819.8,3.2078]
[1745705283115,27.467,1819.9,1819.8,4.30647]
[1745705283314,26.3684,1819.9,1819.8,4.30647]
[1745705284220,26.3684,1819.9,1819.8,9.61447]
[1745705284429,1.7061,1819.9,1819.8,9.61447]
[1745705288211,3.2078,1820.8,1820.0,2.7463]
[1745705288419,0.7948,1820.6,1820.3,4.30612]
[1745705288618,1.89303,1820.6,1820.4,1.09827]
[1745705288823,20.7948,1820.6,1820.3,3.2078]
[1745705289217,1.7016,1820.5,1820.4,1.09827]
[1745705289418,1.7016,1820.5,1820.3,9.61413]
[1745705289723,21.7016,1820.5,1820.4,1.0983]
[1745705290416,21.7016,1820.5,1820.3,8.5158]
[1745705290617,21.7016,1820.5,1820.4,1.0983]
[1745705291121,1.7016,1820.5,1820.4,1.0983]
[1745705291510,3.2078,1821.0,1820.3,3.2078]
[1745705291716,1.7165,1820.9,1820.8,1.09805]
[1745705292116,3.2078,1821.4,1820.8,5.308]
[1745705292316,1.7165,1821.1,1821.0,3.2078]
[1745705292516,21.6856,1821.4,1821.0,4.30574]
[1745705292817,21.6856,1821.4,1820.8,5.308]
[1745705292818,21.6856,1821.4,1821.2,3.2078]
[1745705293215,21.6856,1821.4,1821.3,1.09776]
[1745705293418,22.78331,1821.4,1821.2,4.3056]
[1745705293610,21.6856,1821.4,1821.2,4.3056]
[1745705293817,2.67636,1821.3,1821.2,3.2078]
[1745705294114,1.5786,1821.3,1821.2,8.5158]
[1745705294318,22.67636,1821.3,1821.2,8.5158]
[1745705294521,21.5786,1821.3,1821.2,8.5158]
[1745705294819,22.67636,1821.3,1821.2,8.5158]
[1745705295015,21.5786,1821.3,1821.2,8.5158]
[1745705295620,22.67636,1821.3,1821.2,8.5158]
[1745705296022,21.5786,1821.3,1821.2,8.5158]
[1745705296325,1.5786,1821.3,1821.2,9.61362]
[1745705296726,21.5786,1821.3,1821.2,8.5158]
[1745705297124,21.5786,1821.3,1821.2,9.61362]